{"text_format":"1","workbook":"xlsx","n_sheets":5,"sheets":["TURNO MENSUAL","EXTRAS","FUNCIONARIOS","INSTRUCCIONES ","CONTROL DE CAMBIOS"],"not_rendered":{"charts":0,"images":2,"macros":1,"external_links":0,"defined_names":2,"comments":0,"pivot_tables":0},"unopened":[],"bounds":{"document_bytes":16777216,"sheet_cells":100000,"rows_first":2000,"rows_last":500,"rows_between":2000,"halvings":0,"cell_chars":16384,"cell_head_chars":4096},"cells_cut":0,"cells_raw":0,"read":"whole","date_system":"1900"}

{"sheet":"TURNO MENSUAL","index":0,"n_rows":69,"n_cols":72,"rows_kept":69,"cut":false,"hidden":false,"merged":[]}
[null,null,null,null,null,null,null,null,null,null,null,null,null,null,null,null,null,null,null,null,null,null,null,null,null,null,null,null,"Código:  SMA-F005"]
[null,null,null,"Servicios - Meteorología Aeronáutica\nProgramación de comisiones y turnos",null,null,null,null,null,null,null,null,null,null,null,null,null,null,null,null,null,null,null,null,null,null,null,null,"Versión: 04",null,null,null,null,null,null,null,null,null,null,null,null,null,null,null,null,null,null,null,null,null,null,null,null,null,null,null,null,null,null,null,null,null,null,null,null,null,null,null,null,null,"Enero"]
[null,null,null,null,null,null,null,null,null,null,null,null,null,null,null,null,null,null,null,null,null,null,null,null,null,null,null,null,"Fecha: 29/11/2024",null,null,null,null,null,null,null,null,null,null,null,null,null,null,null,null,null,null,null,null,null,null,null,null,null,null,null,null,null,null,null,null,null,null,null,null,null,null,null,null,null,"Febrero"]
[null,null,null,null,null,null,null,null,null,null,null,null,null,null,null,null,null,null,null,null,null,null,null,null,null,null,null,null,null,null,null,null,null,null,null,null,null,null,null,null,null,null,null,null,null,null,null,null,null,null,null,null,null,null,null,null,null,null,null,null,null,null,null,null,null,null,null,null,null,null,"Marzo"]
[null,null,null,null,null,null,null,null,null,null,null,null,null,null,null,null,null,null,null,null,null,null,null,null,null,null,null,null,null,null,null,null,null,null,null,null,null,null,null,null,null,null,null,null,null,null,null,null,null,null,null,null,null,null,null,null,null,null,null,null,null,null,null,null,null,null,null,null,null,null,"Abril"]
["AEROPUERTO",null,null,null,null,null,null,null,null,null,null,"ÁREA OPERATIVA",null,null,null,null,null,"MES","Noviembre",null,null,null,null,"AÑO",null,null,"TURNOS:",null,"Programados",null,null,null,null,null,null,null,null,null,null,null,null,null,null,null,null,null,null,null,null,null,null,null,null,null,null,null,null,null,null,null,null,null,null,null,null,null,null,null,null,null,"Mayo"]
[null,null,null,null,null,null,null,null,null,null,null,null,null,null,null,null,null,null,null,null,null,null,null,null,null,null,null,null,null,null,null,null,null,null,null,null,null,null,null,null,null,null,null,null,null,null,null,null,null,null,null,null,null,null,null,null,null,null,null,null,null,null,null,null,null,null,null,null,null,null,"Junio"]
["PRONOSTICADORES",null,{"$f":"DATEVALUE(CONCATENATE(\"01/\",$S$6,$Y$6))","v":{"$error":"#VALUE!"}},{"$f":"DATEVALUE(CONCATENATE(\"02/\",$S$6,$Y$6))","v":{"$error":"#VALUE!"}},{"$f":"DATEVALUE(CONCATENATE(\"03/\",$S$6,$Y$6))","v":{"$error":"#VALUE!"}},{"$f":"DATEVALUE(CONCATENATE(\"04/\",$S$6,$Y$6))","v":{"$error":"#VALUE!"}},{"$f":"DATEVALUE(CONCATENATE(\"05/\",$S$6,$Y$6))","v":{"$error":"#VALUE!"}},{"$f":"DATEVALUE(CONCATENATE(\"06/\",$S$6,$Y$6))","v":{"$error":"#VALUE!"}},{"$f":"DATEVALUE(CONCATENATE(\"07/\",$S$6,$Y$6))","v":{"$error":"#VALUE!"}},{"$f":"DATEVALUE(CONCATENATE(\"08/\",$S$6,$Y$6))","v":{"$error":"#VALUE!"}},{"$f":"DATEVALUE(CONCATENATE(\"09/\",$S$6,$Y$6))","v":{"$error":"#VALUE!"}},{"$f":"DATEVALUE(CONCATENATE(\"10/\",$S$6,$Y$6))","v":{"$error":"#VALUE!"}},{"$f":"DATEVALUE(CONCATENATE(\"11/\",$S$6,$Y$6))","v":{"$error":"#VALUE!"}},{"$f":"DATEVALUE(CONCATENATE(\"12/\",$S$6,$Y$6))","v":{"$error":"#VALUE!"}},{"$f":"DATEVALUE(CONCATENATE(\"13/\",$S$6,$Y$6))","v":{"$error":"#VALUE!"}},{"$f":"DATEVALUE(CONCATENATE(\"14/\",$S$6,$Y$6))","v":{"$error":"#VALUE!"}},{"$f":"DATEVALUE(CONCATENATE(\"15/\",$S$6,$Y$6))","v":{"$error":"#VALUE!"}},{"$f":"DATEVALUE(CONCATENATE(\"16/\",$S$6,$Y$6))","v":{"$error":"#VALUE!"}},{"$f":"DATEVALUE(CONCATENATE(\"17/\",$S$6,$Y$6))","v":{"$error":"#VALUE!"}},{"$f":"DATEVALUE(CONCATENATE(\"18/\",$S$6,$Y$6))","v":{"$error":"#VALUE!"}},{"$f":"DATEVALUE(CONCATENATE(\"19/\",$S$6,$Y$6))","v":{"$error":"#VALUE!"}},{"$f":"DATEVALUE(CONCATENATE(\"20/\",$S$6,$Y$6))","v":{"$error":"#VALUE!"}},{"$f":"DATEVALUE(CONCATENATE(\"21/\",$S$6,$Y$6))","v":{"$error":"#VALUE!"}},{"$f":"DATEVALUE(CONCATENATE(\"22/\",$S$6,$Y$6))","v":{"$error":"#VALUE!"}},{"$f":"DATEVALUE(CONCATENATE(\"23/\",$S$6,$Y$6))","v":{"$error":"#VALUE!"}},{"$f":"DATEVALUE(CONCATENATE(\"24/\",$S$6,$Y$6))","v":{"$error":"#VALUE!"}},{"$f":"DATEVALUE(CONCATENATE(\"25/\",$S$6,$Y$6))","v":{"$error":"#VALUE!"}},{"$f":"DATEVALUE(CONCATENATE(\"26/\",$S$6,$Y$6))","v":{"$error":"#VALUE!"}},{"$f":"DATEVALUE(CONCATENATE(\"27/\",$S$6,$Y$6))","v":{"$error":"#VALUE!"}},{"$f":"DATEVALUE(CONCATENATE(\"28/\",$S$6,$Y$6))","v":{"$error":"#VALUE!"}},{"$f":"IFERROR(DATEVALUE(CONCATENATE(\"29/\",$S$6,$Y$6)),\"\")","v":""},{"$f":"IFERROR(DATEVALUE(CONCATENATE(\"30/\",$S$6,$Y$6)),\"\")","v":""},{"$f":"IFERROR(DATEVALUE(CONCATENATE(\"31/\",$S$6,$Y$6)),\"\")","v":""},null,null,null,null,null,null,null,null,null,null,null,null,null,null,null,null,null,null,null,null,null,null,null,null,null,null,null,null,null,null,null,null,null,null,null,null,null,"Julio"]
["Inicia","Termina",null,null,null,null,null,null,null,null,null,null,null,null,null,null,null,null,null,null,null,null,null,null,null,null,null,null,null,null,null,null,null,null,null,null,null,null,null,null,null,null,null,null,null,null,null,null,null,null,null,null,null,null,null,null,null,null,null,null,null,null,null,null,null,null,null,null,null,null,"Agosto"]
["0000","0600",null,null,null,null,null,null,null,null,null,null,null,null,null,null,null,null,null,null,null,null,null,null,null,null,null,null,null,null,null,null,null,null,null,null,null,null,null,null,null,null,null,null,null,null,null,null,null,null,null,null,null,null,null,null,null,null,null,null,null,null,null,null,null,null,null,null,null,null,"Septiembre"]
["0600","1200",null,null,null,null,null,null,null,null,null,null,null,null,null,null,null,null,null,null,null,null,null,null,null,null,null,null,null,null,null,null,null,null,null,null,null,null,null,null,null,null,null,null,null,null,null,null,null,null,null,null,null,null,null,null,null,null,null,null,null,null,null,null,null,null,null,null,null,null,"Octubre"]
["1200","1800",null,null,null,null,null,null,null,null,null,null,null,null,null,null,null,null,null,null,null,null,null,null,null,null,null,null,null,null,null,null,null,null,null,null,null,null,null,null,null,null,null,null,null,null,null,null,null,null,null,null,null,null,null,null,null,null,null,null,null,null,null,null,null,null,null,null,null,null,"Noviembre"]
["1800","2400",null,null,null,null,null,null,null,null,null,null,null,null,null,null,null,null,null,null,null,null,null,null,null,null,null,null,null,null,null,null,null,null,null,null,null,null,null,null,null,null,null,null,null,null,null,null,null,null,null,null,null,null,null,null,null,null,null,null,null,null,null,null,null,null,null,null,null,null,"Diciembre"]
["AUXILIARES",null,{"$f":"C8","v":{"$error":"#VALUE!"}},{"$error":"#VALUE!"},{"$error":"#VALUE!"},{"$error":"#VALUE!"},{"$error":"#VALUE!"},{"$error":"#VALUE!"},{"$error":"#VALUE!"},{"$error":"#VALUE!"},{"$error":"#VALUE!"},{"$error":"#VALUE!"},{"$error":"#VALUE!"},{"$error":"#VALUE!"},{"$error":"#VALUE!"},{"$error":"#VALUE!"},{"$error":"#VALUE!"},{"$error":"#VALUE!"},{"$error":"#VALUE!"},{"$error":"#VALUE!"},{"$error":"#VALUE!"},{"$error":"#VALUE!"},{"$error":"#VALUE!"},{"$error":"#VALUE!"},{"$error":"#VALUE!"},{"$error":"#VALUE!"},{"$error":"#VALUE!"},{"$error":"#VALUE!"},{"$error":"#VALUE!"},{"$error":"#VALUE!"},{"$f":"IF(AE8=\"\",\"\",AE8)","v":""},"",""]
["Inicia","Termina"]
["0000","0600"]
["0600","1200"]
["0600","1200"]
["1200","1800"]
["1800","2400"]
["COMUNICACIONES",null,{"$f":"C14","v":{"$error":"#VALUE!"}},{"$error":"#VALUE!"},{"$error":"#VALUE!"},{"$error":"#VALUE!"},{"$error":"#VALUE!"},{"$error":"#VALUE!"},{"$error":"#VALUE!"},{"$error":"#VALUE!"},{"$error":"#VALUE!"},{"$error":"#VALUE!"},{"$error":"#VALUE!"},{"$error":"#VALUE!"},{"$error":"#VALUE!"},{"$error":"#VALUE!"},{"$error":"#VALUE!"},{"$error":"#VALUE!"},{"$error":"#VALUE!"},{"$error":"#VALUE!"},{"$error":"#VALUE!"},{"$error":"#VALUE!"},{"$error":"#VALUE!"},{"$error":"#VALUE!"},{"$error":"#VALUE!"},{"$error":"#VALUE!"},{"$error":"#VALUE!"},{"$error":"#VALUE!"},{"$error":"#VALUE!"},{"$error":"#VALUE!"},"","",""]
["Inicia","Termina"]
["0000","0600"]
["0600","1200"]
["1200","1800"]
["1800","2400"]
["APOYO OFICINA",null,{"$f":"C21","v":{"$error":"#VALUE!"}},{"$error":"#VALUE!"},{"$error":"#VALUE!"},{"$error":"#VALUE!"},{"$error":"#VALUE!"},{"$error":"#VALUE!"},{"$error":"#VALUE!"},{"$error":"#VALUE!"},{"$error":"#VALUE!"},{"$error":"#VALUE!"},{"$error":"#VALUE!"},{"$error":"#VALUE!"},{"$error":"#VALUE!"},{"$error":"#VALUE!"},{"$error":"#VALUE!"},{"$error":"#VALUE!"},{"$error":"#VALUE!"},{"$error":"#VALUE!"},{"$error":"#VALUE!"},{"$error":"#VALUE!"},{"$error":"#VALUE!"},{"$error":"#VALUE!"},{"$error":"#VALUE!"},{"$error":"#VALUE!"},{"$error":"#VALUE!"},{"$error":"#VALUE!"},{"$error":"#VALUE!"},{"$error":"#VALUE!"},"","",""]
["0600","1200"]
["OBSERV. SUPERFICIE",null,{"$f":"C27","v":{"$error":"#VALUE!"}},{"$error":"#VALUE!"},{"$error":"#VALUE!"},{"$error":"#VALUE!"},{"$error":"#VALUE!"},{"$error":"#VALUE!"},{"$error":"#VALUE!"},{"$error":"#VALUE!"},{"$error":"#VALUE!"},{"$error":"#VALUE!"},{"$error":"#VALUE!"},{"$error":"#VALUE!"},{"$error":"#VALUE!"},{"$error":"#VALUE!"},{"$error":"#VALUE!"},{"$error":"#VALUE!"},{"$error":"#VALUE!"},{"$error":"#VALUE!"},{"$error":"#VALUE!"},{"$error":"#VALUE!"},{"$error":"#VALUE!"},{"$error":"#VALUE!"},{"$error":"#VALUE!"},{"$error":"#VALUE!"},{"$error":"#VALUE!"},{"$error":"#VALUE!"},{"$error":"#VALUE!"},{"$error":"#VALUE!"},"","",""]
["Inicia","Termina"]
["0000","0600"]
["0600","1200"]
["1200","1800"]
["1800","2400"]
["RADIOSONDA",null,{"$f":"C29","v":{"$error":"#VALUE!"}},{"$error":"#VALUE!"},{"$error":"#VALUE!"},{"$error":"#VALUE!"},{"$error":"#VALUE!"},{"$error":"#VALUE!"},{"$error":"#VALUE!"},{"$error":"#VALUE!"},{"$error":"#VALUE!"},{"$error":"#VALUE!"},{"$error":"#VALUE!"},{"$error":"#VALUE!"},{"$error":"#VALUE!"},{"$error":"#VALUE!"},{"$error":"#VALUE!"},{"$error":"#VALUE!"},{"$error":"#VALUE!"},{"$error":"#VALUE!"},{"$error":"#VALUE!"},{"$error":"#VALUE!"},{"$error":"#VALUE!"},{"$error":"#VALUE!"},{"$error":"#VALUE!"},{"$error":"#VALUE!"},{"$error":"#VALUE!"},{"$error":"#VALUE!"},{"$error":"#VALUE!"},{"$error":"#VALUE!"},"","",""]
["Inicia","Termina"]
["0600","1200"]
["1200","1800"]
["EXTENSIÓN HORARIO"]
["Funcionario"]
["Horas Diurnas"]
["Horas Nocturnas"]
["COMPENSATORIOS"]
["OTRAS ACTIVIDADES"]
["INCAPACIDAD"]
["PERMISO/LICENCIA"]
["COMISIÓN"]
["VACACIONES"]
["LIBRE"]
["FUNCIONARIO",null,null,"CÓD.","AMA","CAM","COM","CEX","ATA","ATM","CEM","AMF","FUNCIONARIO",null,null,null,null,"CÓD.","AMA","CAM","COM","CEX","ATA","ATM","CEM","AMF"]
[null,null,null,"A",null,null,null,null,null,null,null,null,null,null,null,null,null,"L",null,null,null,null,{"$f":"IF(S51<>\"\",(S51+T51+V51)-U51,\"\")","v":""}]
[null,null,null,"B",null,null,null,null,null,null,null,null,null,null,null,null,null,"M",null,null,null,null,""]
[null,null,null,"C",null,null,null,null,null,null,null,null,null,null,null,null,null,"N",null,null,null,null,""]
[null,null,null,"D",null,null,null,null,null,null,null,null,null,null,null,null,null,"O",null,null,null,null,"",null,null,null,"FUNCIONARIO ELABORA PROGRAMACIÓN"]
[null,null,null,"E",null,null,null,null,null,null,null,null,null,null,null,null,null,"P",null,null,null,null,""]
[null,null,null,"F",null,null,null,null,null,null,null,null,null,null,null,null,null,"S",null,null,null,null,""]
[null,null,null,"G",null,null,null,null,null,null,null,null,null,null,null,null,null,"V",null,null,null,null,""]
[null,null,null,"H",null,null,null,null,null,null,null,null,null,null,null,null,null,"Z",null,null,null,null,null,null,{"$f":"IF(AND(S58<>\"\",X58<>\"\"),Causext(R58,$C$10:$AG$49,1),\"\")","v":""},{"$f":"IF(AND(S58<>\"\",X58<>\"\"),X58+Y58-(OtrasActi(R58,$C$44:$AG$44)),\"\")","v":""},null,null,null,null,null,null,null,null,null,null,null,null,null,null,null,null,null,null,null,null,null,null,null,null,null,null,null,null,null,null,null,null,null,null,null,null,null,null,null,null,null,null,null,null,null,"Columna1"]
[null,null,null,"I",null,null,null,null,null,null,null,null,null,null,null,null,null,null,null,{"$f":"IF(R59 <> \"\",Dominicales(R59,$C$8:$AG$49),\"\")","v":""},{"$f":"IF(R59<>\"\",Compensados(R59,$C$43:$AG$43),\"\")","v":""},{"$f":"IF(S59<>\"\",Causext(R59,$C$10:$AG$49,0),\"\")","v":""},"",null,"","",null,null,null,null,null,null,null,null,null,null,null,null,null,null,null,null,null,null,null,null,null,null,null,null,null,null,null,null,null,null,null,null,null,null,null,null,null,null,null,null,null,null,null,null,null,"01"]
[null,null,null,"J",null,null,null,null,null,null,null,null,null,null,null,null,null,null,null,"","","","",null,"","","Vo.Bo. COORDINADOR MET.AERO.",null,null,null,null,null,null,null,null,null,null,null,null,null,null,null,null,null,null,null,null,null,null,null,null,null,null,null,null,null,null,null,null,null,null,null,null,null,null,null,null,null,null,null,null,"02"]
[null,null,null,"K",null,null,null,null,null,null,null,null,null,null,null,null,null,null,null,"","","","",null,"","",null,null,null,null,null,null,null,null,null,null,null,null,null,null,null,null,null,null,null,null,null,null,null,null,null,null,null,null,null,null,null,null,null,null,null,null,null,null,null,null,null,null,null,null,null,"03"]
["Notas:","Los días dominicales y festivos deberán colocarse entre paréntesis. Ej.: (05)",null,null,null,null,null,null,null,null,null,null,null,null,null,null,null,null,null,null,null,null,null,null,null,null,null,null,null,null,null,null,null,null,null,null,null,null,null,null,null,null,null,null,null,null,null,null,null,null,null,null,null,null,null,null,null,null,null,null,null,null,null,null,null,null,null,null,null,null,null,"04"]
[null,"Para colocar dos o más funcionarios en una celda separarlos con un separador. Ej. AS-FV",null,null,null,null,null,null,null,null,null,null,null,null,null,null,null,null,null,null,null,null,null,null,null,null,null,null,null,null,null,null,null,null,null,null,null,null,null,null,null,null,null,null,null,null,null,null,null,null,null,null,null,null,null,null,null,null,null,null,null,null,null,null,null,null,null,null,null,null,"Programados","05"]
[null,null,null,null,null,null,null,null,null,null,null,null,null,null,null,null,null,null,null,null,null,null,null,null,null,null,null,null,null,null,null,null,null,null,null,null,null,null,null,null,null,null,null,null,null,null,null,null,null,null,null,null,null,null,null,null,null,null,null,null,null,null,null,null,null,null,null,null,null,null,"Cumplidos","06"]
[null,null,null,null,null,null,null,null,null,null,null,null,null,null,null,null,null,null,null,null,null,null,null,null,null,null,null,null,null,null,null,null,null,null,null,null,null,null,null,null,null,null,null,null,null,null,null,null,null,null,null,null,null,null,null,null,null,null,null,null,null,null,null,null,null,null,null,null,null,null,null,"07"]
[null,null,null,null,null,null,null,null,null,null,null,null,null,null,null,null,null,null,null,null,null,null,null,null,null,null,null,null,null,null,null,null,null,null,null,null,null,null,null,null,null,null,null,null,null,null,null,null,null,null,null,null,null,null,null,null,null,null,null,null,null,null,null,null,null,null,null,null,null,null,null,"08"]
[null,null,null,null,null,null,null,null,null,null,null,null,null,null,null,null,null,null,null,null,null,null,null,null,null,null,null,null,null,null,null,null,null,null,null,null,null,null,null,null,null,null,null,null,null,null,null,null,null,null,null,null,null,null,null,null,null,null,null,null,null,null,null,null,null,null,null,null,null,null,null,"09"]
[null,null,null,null,null,null,null,null,null,null,null,null,null,null,null,null,null,null,null,null,null,null,null,null,null,null,null,null,null,null,null,null,null,null,null,null,null,null,null,null,null,null,null,null,null,null,null,null,null,null,null,null,null,null,null,null,null,null,null,null,null,null,null,null,null,null,null,null,null,null,null,"10"]
[null,null,null,null,null,null,null,null,null,null,null,null,null,null,null,null,null,null,null,null,null,null,null,null,null,null,null,null,null,null,null,null,null,null,null,null,null,null,null,null,null,null,null,null,null,null,null,null,null,null,null,null,null,null,null,null,null,null,null,null,null,null,null,null,null,null,null,null,null,null,null,"11"]

{"sheet":"EXTRAS","index":1,"n_rows":42,"n_cols":25,"rows_kept":42,"cut":false,"hidden":false,"merged":[]}
[null,null,"Servicios - Meteorología Aeronáutica\nFormato progamación de comisiones y turnos \nRelación de tiempo suplementario, recargo nocturno, dominicales y festivos",null,null,null,null,null,null,null," Mes Laborado: ",null,null,{"$f":"'TURNO MENSUAL'!S6","v":"Noviembre"}]
[null,null,null,null,null,null,null,null,null,null," Fecha elaboración: ",null,null,{"$f":"DATEVALUE(CONCATENATE(\"01/\",'TURNO MENSUAL'!S6,\"/\",'TURNO MENSUAL'!Y6))+COUNTIF('TURNO MENSUAL'!C8:AG8,\">1\")","v":{"$error":"#VALUE!"}},null,null,null,"A"]
["  Funcionario:              ",null,null,null,null,null,"Cargo, código y grado:",null,null,null,null,null,null,null,null,null,null,"B"]
[" Sueldo y Prima Antigüedad:",null,null,null,"Cédula No.",null,"Área Operativa No.",null,{"$f":"'TURNO MENSUAL'!O6","v":0}," Ubicación:",{"$f":"CONCATENATE(\"Aeropuerto: \",'TURNO MENSUAL'!C6)","v":"Aeropuerto: "},null,null,null,null,null,null,"C"]
[null,null,null,null,null,null,null,null,null,null,null,null,null,null,null,null,null,"D"]
[null,"           ORDINARIOS",null,"                   DOMINICALES",null,null,null,"                        JORNADA",null,null,null,null,null,null,null,null,null,"E",null,null,null,null,null,null,{"$f":"IF('TURNO MENSUAL'!A51=\"\",\"\",'TURNO MENSUAL'!A51)","v":""}]
[null,"HORAS","HORAS","JORNADA","HORAS","HORAS","RECARGO",null,null,null,null,null,null,null,null,null,null,"F",null,null,null,null,null,null,{"$f":"IF('TURNO MENSUAL'!A52=\"\",\"\",'TURNO MENSUAL'!A52)","v":""}]
["DIA","EXTRAS","EXTRAS","ORDINARIA","EXTRAS","EXTRAS","NOCTURNO",null,"HORAS ","COMPENSATORIO","           COMPENSATORIOS",null,null,null,null,null,null,"G",null,null,null,null,null,null,{"$f":"IF('TURNO MENSUAL'!A53=\"\",\"\",'TURNO MENSUAL'!A53)","v":""}]
[null,"DIURNAS","NOCT.",null,"DIURNAS","NOCT.",null,"ASIGNADA","EXTRAS",null,null,null,null,null,null,null,null,"H",null,null,null,null,null,null,{"$f":"IF('TURNO MENSUAL'!A54=\"\",\"\",'TURNO MENSUAL'!A54)","v":""}]
[null,1.25,1.75,2,2.25,2.75,0.35,null,null,null,"ACU","CAU","EXM","CEX","CON","ATA",null,"I",null,null,null,null,null,null,{"$f":"IF('TURNO MENSUAL'!A55=\"\",\"\",'TURNO MENSUAL'!A55)","v":""}]
[{"$f":"'TURNO MENSUAL'!C27","v":{"$error":"#VALUE!"}},null,null,null,null,null,null,null,null,null,null,null,null,null,null,null,null,"J",null,null,null,null,null,null,{"$f":"IF('TURNO MENSUAL'!A56=\"\",\"\",'TURNO MENSUAL'!A56)","v":""}]
[{"$f":"'TURNO MENSUAL'!D27","v":{"$error":"#VALUE!"}},null,null,null,null,null,null,null,null,null,null,{"$f":"D42/6","v":0},{"$f":"IF((B42+C42+E42+F42)>50,(B42+C42+E42+F42)-50,0)","v":0},{"$f":"+M12/6","v":0},{"$f":"J42","v":0},{"$f":"+K12+L12+N12-O12","v":0},null,"K",null,null,null,null,null,null,{"$f":"IF('TURNO MENSUAL'!A57=\"\",\"\",'TURNO MENSUAL'!A57)","v":""}]
[{"$f":"'TURNO MENSUAL'!E27","v":{"$error":"#VALUE!"}},null,null,null,null,null,null,null,null,null,null,null,null,null,null,null,null,"L",null,null,null,null,null,null,{"$f":"IF('TURNO MENSUAL'!A58=\"\",\"\",'TURNO MENSUAL'!A58)","v":""}]
[{"$f":"'TURNO MENSUAL'!F27","v":{"$error":"#VALUE!"}},null,null,null,null,null,null,null,null,null,"ACU","Acumulados mes anterior",null,null,null,null,null,"M",null,null,null,null,null,null,{"$f":"IF('TURNO MENSUAL'!A59=\"\",\"\",'TURNO MENSUAL'!A59)","v":""}]
[{"$f":"'TURNO MENSUAL'!G27","v":{"$error":"#VALUE!"}},null,null,null,null,null,null,null,null,null,"CAU","Causados en el mes jornada ordinaria/6",null,null,null,null,null,"N",null,null,null,null,null,null,{"$f":"IF('TURNO MENSUAL'!A60=\"\",\"\",'TURNO MENSUAL'!A60)","v":""}]
[{"$f":"'TURNO MENSUAL'!H27","v":{"$error":"#VALUE!"}},null,null,null,null,null,null,null,null,null,"EXM","Extras mensuales-50",null,null,null,null,null,"O",null,null,null,null,null,null,{"$f":"IF('TURNO MENSUAL'!A61=\"\",\"\",'TURNO MENSUAL'!A61)","v":""}]
[{"$f":"'TURNO MENSUAL'!I27","v":{"$error":"#VALUE!"}},null,null,null,null,null,null,null,null,null,"CEX","Causados EXM  horas/  6",null,null,null,null,null,"P",null,null,null,null,null,null,{"$f":"IF('TURNO MENSUAL'!M51=\"\",\"\",'TURNO MENSUAL'!M51)","v":""}]
[{"$f":"'TURNO MENSUAL'!J27","v":{"$error":"#VALUE!"}},null,null,null,null,null,null,null,null,null,"CON","Concedidos en el mes",null,null,null,null,null,"S",null,null,null,null,null,null,{"$f":"IF('TURNO MENSUAL'!M52=\"\",\"\",'TURNO MENSUAL'!M52)","v":""}]
[{"$f":"'TURNO MENSUAL'!K27","v":{"$error":"#VALUE!"}},null,null,null,null,null,null,null,null,null,"ATA","Acumulados actuales",null,null,null,null,null,"V",null,null,null,null,null,null,{"$f":"IF('TURNO MENSUAL'!M53=\"\",\"\",'TURNO MENSUAL'!M53)","v":""}]
[{"$f":"'TURNO MENSUAL'!L27","v":{"$error":"#VALUE!"}},null,null,null,null,null,null,null,null,null,null,null,null,null,null,null,null,"Z",null,null,null,null,null,null,{"$f":"IF('TURNO MENSUAL'!M54=\"\",\"\",'TURNO MENSUAL'!M54)","v":""}]
[{"$f":"'TURNO MENSUAL'!M27","v":{"$error":"#VALUE!"}},null,null,null,null,null,null,null,null,null," OBSERVACIONES:",null,null,null,null,null,null,null,null,null,null,null,null,null,{"$f":"IF('TURNO MENSUAL'!M55=\"\",\"\",'TURNO MENSUAL'!M55)","v":""}]
[{"$f":"'TURNO MENSUAL'!N27","v":{"$error":"#VALUE!"}},null,null,null,null,null,null,null,null,null,null,null,null,null,null,null,null,null,null,null,null,null,null,null,{"$f":"IF('TURNO MENSUAL'!M56=\"\",\"\",'TURNO MENSUAL'!M56)","v":""}]
[{"$f":"'TURNO MENSUAL'!O27","v":{"$error":"#VALUE!"}},null,null,null,null,null,null,null,null,null,null,null,null,null,null,null,null,null,null,null,null,null,null,null,{"$f":"IF('TURNO MENSUAL'!M57=\"\",\"\",'TURNO MENSUAL'!M57)","v":""}]
[{"$f":"'TURNO MENSUAL'!P27","v":{"$error":"#VALUE!"}},null,null,null,null,null,null,null,null,null,null,null,null,null,null,null,null,null,null,null,null,null,null,null,{"$f":"IF('TURNO MENSUAL'!M58=\"\",\"\",'TURNO MENSUAL'!M58)","v":""}]
[{"$f":"'TURNO MENSUAL'!Q27","v":{"$error":"#VALUE!"}},null,null,null,null,null,null,null,null,null,null,null,null,null,null,null,null,null,null,null,null,null,null,null,{"$f":"IF('TURNO MENSUAL'!M59=\"\",\"\",'TURNO MENSUAL'!M59)","v":""}]
[{"$f":"'TURNO MENSUAL'!R27","v":{"$error":"#VALUE!"}},null,null,null,null,null,null,null,null,null,null,null,null,null,null,null,null,null,null,null,null,null,null,null,{"$f":"IF('TURNO MENSUAL'!M60=\"\",\"\",'TURNO MENSUAL'!M60)","v":""}]
[{"$f":"'TURNO MENSUAL'!S27","v":{"$error":"#VALUE!"}},null,null,null,null,null,null,null,null,null,null,null,null,null,null,null,null,null,null,null,null,null,null,null,{"$f":"IF('TURNO MENSUAL'!M61=\"\",\"\",'TURNO MENSUAL'!M61)","v":""}]
[{"$f":"'TURNO MENSUAL'!T27","v":{"$error":"#VALUE!"}}]
[{"$f":"'TURNO MENSUAL'!U27","v":{"$error":"#VALUE!"}}]
[{"$f":"'TURNO MENSUAL'!V27","v":{"$error":"#VALUE!"}}]
[{"$f":"'TURNO MENSUAL'!W27","v":{"$error":"#VALUE!"}}]
[{"$f":"'TURNO MENSUAL'!X27","v":{"$error":"#VALUE!"}}]
[{"$f":"'TURNO MENSUAL'!Y27","v":{"$error":"#VALUE!"}}]
[{"$f":"'TURNO MENSUAL'!Z27","v":{"$error":"#VALUE!"}}]
[{"$f":"'TURNO MENSUAL'!AA27","v":{"$error":"#VALUE!"}}]
[{"$f":"'TURNO MENSUAL'!AB27","v":{"$error":"#VALUE!"}},null,null,null,null,null,null,null,null,null," Firma Funcionario"]
[{"$f":"'TURNO MENSUAL'!AC27","v":{"$error":"#VALUE!"}},null,null,null,null,null,null,null,null,null,{"$f":"+C3","v":0}]
[{"$f":"'TURNO MENSUAL'!AD27","v":{"$error":"#VALUE!"}}]
[{"$f":"'TURNO MENSUAL'!AE27","v":""}]
[{"$f":"'TURNO MENSUAL'!AF27","v":""},null,null,{"$f":"IF(AND(A40<>\"\",H40<>\"\"),IF(OR(NOT(WEEKDAY(A40,2)<>7),NOT( ISERROR( MATCH( A40, festin, 0 ) ) )),6,\"\"),\"\")","v":""}]
[{"$f":"'TURNO MENSUAL'!AG8","v":""},null,null,"",null,null,null,null,null,null," Firma Coordinador y/o Jefe Inmediato"]
["TOTAL",{"$f":"SUM(B11:B41)","v":0},0,0,0,0,0,null,null,{"$f":"COUNTIF(J11:J41,\"COMPENSA\")","v":0}]

{"sheet":"FUNCIONARIOS","index":2,"n_rows":83,"n_cols":11,"rows_kept":83,"cut":false,"hidden":false,"merged":[]}
[null,null,null,null,null,"Código:  SMA-F005"]
[null,null,"Servicios - Meteorología Aeronáutica\nFormato progamación de comisiones y turnos ",null,null,"Versión: 04"]
[null,null,null,null,null,"Fecha: 29/11/2024"]
[]
[]
[null,{"$f":"CONCATENATE(\"Funcionarios Aeropuerto:  \",'TURNO MENSUAL'!C6,\" - Area Operativa \",'TURNO MENSUAL'!O6)","v":"Funcionarios Aeropuerto:   - Area Operativa "}]
[null,"Funcionario","Identificación","Cargo","Sueldo","Firma"]
[null,{"$f":"IF('TURNO MENSUAL'!A51<>\"\",'TURNO MENSUAL'!A51,\"\")","v":""}]
[null,{"$f":"IF('TURNO MENSUAL'!A52<>\"\",'TURNO MENSUAL'!A52,\"\")","v":""}]
[null,{"$f":"IF('TURNO MENSUAL'!A53<>\"\",'TURNO MENSUAL'!A53,\"\")","v":""}]
[null,{"$f":"IF('TURNO MENSUAL'!A54<>\"\",'TURNO MENSUAL'!A54,\"\")","v":""}]
[null,{"$f":"IF('TURNO MENSUAL'!A55<>\"\",'TURNO MENSUAL'!A55,\"\")","v":""}]
[null,{"$f":"IF('TURNO MENSUAL'!A56<>\"\",'TURNO MENSUAL'!A56,\"\")","v":""}]
[null,{"$f":"IF('TURNO MENSUAL'!A57<>\"\",'TURNO MENSUAL'!A57,\"\")","v":""}]
[null,{"$f":"IF('TURNO MENSUAL'!A58<>\"\",'TURNO MENSUAL'!A58,\"\")","v":""}]
[null,{"$f":"IF('TURNO MENSUAL'!A59<>\"\",'TURNO MENSUAL'!A59,\"\")","v":""}]
[null,{"$f":"IF('TURNO MENSUAL'!A60<>\"\",'TURNO MENSUAL'!A60,\"\")","v":""}]
[null,{"$f":"IF('TURNO MENSUAL'!A61<>\"\",'TURNO MENSUAL'!A61,\"\")","v":""}]
[null,{"$f":"IF('TURNO MENSUAL'!M51<>\"\",'TURNO MENSUAL'!M51,\"\")","v":""}]
[null,{"$f":"IF('TURNO MENSUAL'!M52<>\"\",'TURNO MENSUAL'!M52,\"\")","v":""}]
[null,{"$f":"IF('TURNO MENSUAL'!M53<>\"\",'TURNO MENSUAL'!M53,\"\")","v":""}]
[null,{"$f":"IF('TURNO MENSUAL'!M54<>\"\",'TURNO MENSUAL'!M54,\"\")","v":""}]
[null,{"$f":"IF('TURNO MENSUAL'!M55<>\"\",'TURNO MENSUAL'!M55,\"\")","v":""}]
[null,{"$f":"IF('TURNO MENSUAL'!M56<>\"\",'TURNO MENSUAL'!M56,\"\")","v":""}]
[null,{"$f":"IF('TURNO MENSUAL'!M57<>\"\",'TURNO MENSUAL'!M57,\"\")","v":""}]
[null,{"$f":"IF('TURNO MENSUAL'!M58<>\"\",'TURNO MENSUAL'!M58,\"\")","v":""}]
[null,{"$f":"IF('TURNO MENSUAL'!M59<>\"\",'TURNO MENSUAL'!M59,\"\")","v":""}]
[null,{"$f":"IF('TURNO MENSUAL'!M60<>\"\",'TURNO MENSUAL'!M60,\"\")","v":""}]
[null,{"$f":"IF('TURNO MENSUAL'!M61<>\"\",'TURNO MENSUAL'!M61,\"\")","v":""}]
[]
[]
[]
[]
[]
[]
[]
[]
[]
[]
[]
[]
[]
[]
[null,"2013-01-01"]
[null,"2013-01-07"]
[null,"2013-03-25"]
[null,"2013-03-28"]
[null,"2013-03-29"]
[null,"2013-05-01"]
[null,"2013-05-13"]
[null,"2013-06-03"]
[null,"2013-06-10"]
[null,"2013-07-01"]
[null,"2013-07-20"]
[null,"2013-08-07"]
[null,"2013-08-19"]
[null,"2013-10-14"]
[null,"2013-11-04"]
[null,"2013-11-11"]
[null,"2013-12-25"]
[]
[]
[null,null,{"$f":"'TURNO MENSUAL'!Y6","v":0}]
[null,"a",{"$f":"MOD(C63,19)","v":0}]
[null,"b",{"$f":"MOD(C63,4)","v":0}]
[null,"c",{"$f":"MOD(C63,7)","v":0},null,null,null,null,null,null,null,{"$f":"E67-3","v":"1900-04-14"}]
[null,"d",{"$f":"MOD((19*C64+24),30)","v":24},null,{"$f":"IF(C72<>0,DATE(C63,D72,C72),IF(C73<>0,DATE(C63,D73,C73),IF(C70<>0,DATE(C63,D70,C70),IF(C71<>0,DATE(C63,D71,C71)))))","v":"1900-04-17"},null,null,null,null,null,{"$f":"E67-2","v":"1900-04-15"}]
[null,"e",{"$f":"MOD((2*C65+4*C66+6*C67 +5),7)","v":2},null,null,null,40,{"$f":"E67+G68","v":"1900-05-27"},{"$f":"WEEKDAY(H68,2)","v":7},{"$f":"IF(I68=1,0,8-I68)","v":1},{"$f":"H68+J68","v":"1900-05-28"}]
[null,null,null,null,null,null,60,{"$f":"E67+G69","v":"1900-06-16"},6,2,"1900-06-18"]
[null,"1) ",{"$f":"IF(C67+C68<10,C67+C68+22,0)","v":0},3,null,null,68,{"$f":"E67+G70","v":"1900-06-24"},7,1,"1900-06-25"]
[null,"2)",{"$f":"IF(C67+C68>9,C67+C68-9,0)","v":17},4,null,null,null,null,null,null,{"$f":"DATE(C63,1,1)","v":"1900-01-01"}]
[null,"3)",{"$f":"IF(C71=26,19,0)","v":0},4,null,null,null,null,null,null,{"$f":"DATE(C63,5,1)","v":"1900-05-01"}]
[null,"4)",{"$f":"IF(AND(C71=25,C67=28,C68=6,C64>10),18,0)","v":0},4,null,null,null,null,null,null,{"$f":"DATE(C63,7,20)","v":"1900-07-20"}]
[null,null,null,null,null,null,null,null,null,null,{"$f":"DATE(C63,8,7)","v":"1900-08-07"}]
[null,null,null,null,null,null,null,null,null,null,{"$f":"DATE(C63,12,8)","v":"1900-12-08"}]
[null,null,null,null,null,null,null,null,null,null,{"$f":"DATE(C63,12,25)","v":"1900-12-25"}]
[null,null,null,null,null,null,null,{"$f":"DATE(C63,1,6)","v":"1900-01-06"},{"$f":"WEEKDAY(H77,2)","v":5},{"$f":"IF(I77=1,0,8-I77)","v":3},{"$f":"H77+J77","v":"1900-01-09"}]
[null,null,null,null,null,null,null,{"$f":"DATE(C63,3,19)","v":"1900-03-19"},1,0,"1900-03-19"]
[null,null,null,null,null,null,null,{"$f":"DATE(C63,6,29)","v":"1900-06-29"},5,3,"1900-07-02"]
[null,null,null,null,null,null,null,{"$f":"DATE(C63,8,15)","v":"1900-08-15"},3,5,"1900-08-20"]
[null,null,null,null,null,null,null,{"$f":"DATE(C63,10,12)","v":"1900-10-12"},5,3,"1900-10-15"]
[null,null,null,null,null,null,null,{"$f":"DATE(C63,11,1)","v":"1900-11-01"},4,4,"1900-11-05"]
[null,null,null,null,null,null,null,{"$f":"DATE(C63,11,11)","v":"1900-11-11"},7,1,"1900-11-12"]

{"sheet":"INSTRUCCIONES ","index":3,"n_rows":78,"n_cols":4,"rows_kept":78,"cut":false,"hidden":false,"merged":[]}
[]
[null,null,null,"Código:  SMA-F005"]
[null,null,"Servicios - Meteorología Aeronáutica\nFormato Programación de comisiones y turnos ","Versión: 04"]
[null,null,null,"Fecha:  29/11/2024"]
[]
[null,"INSTRUCCIONES PARA EL DILIGENCIAMIENTO"]
[]
[null,"TURNO MENSUAL "]
[]
[null,"Ítem ","Descripción"]
[null,"AEROPUERTO","Se registra el nombre del aeropuerto y ciudad"]
[null,"ÁREA OPERATIVA","Se selecciona el número del área operativa correspondiente"]
[null,"MES","Se selecciona el mes correspondiente"]
[null,"AÑO","Se escribe el año vigente "]
[null,"TURNOS","Se selecciona entre turnos programados y cumplidos "]
[]
[null,"PRONOSTICADORES","Se registra el nombre [Cód. Funcionarios -letras (A, B, C, D, …)] en el horario y días asignados si es pronosticador "]
[null,"AUXILIARES","Se registra el nombre [Cód. Funcionarios -letras (A, B, C, D, …)] en el horario y días asignados si es auxiliar"]
[null,"COMUNICADORES","Se registra el nombre [Cód. Funcionarios -letras (A, B, C, D, …)] en el horario y días asignados si es comunicador"]
[null,"APOYO OFICINA","Se registra el nombre [Cód. Funcionarios -letras (A, B, C, D, …)] en el horario y días asignados si es apoyo de oficina"]
[null,"OBSERVADORES SUPERFICIE","Se registra el nombre [Cód. Funcionarios-letras (A, B, C, D, …)] en el horario y días asignados si es observador de superficie"]
[null,"RADIOSONDA","Se registra el nombre [Cód. Funcionarios-letras (A, B, C, D, …)] en el horario y días asignados si trabaja en radiosonda"]
[null,"EXTENSIÓN HORARIO","Se específica nombre del funcionario y horario extendido diurno o nocturno "]
[]
[null,"COMPENSATORIOS","Se indica por codificación los compensatorios "]
[null,"OTRAS ACTIVIDADES","Se indica por codificación otras actividades"]
[null,"INCAPACIDAD","Se indica por codificación la incapacidad"]
[null,"PERMISO/LICENCIA","Se indica por codificación el permiso o la licencia"]
[null,"COMISIÓN","Se indica por codificación la(s) comisión (es)"]
[null,"VACACIONES","Se indica por codificación las vacaciones"]
[null,"LIBRE","Se indica por codificación los días libres"]
[]
[null,"FUNCIONARIO","Nombre del funcionario del turno "]
[null,"CÓD.","Código del funcionario asignado para registro dentro de la parte de turnos (letras de la A-Z)"]
[null,"AMA","Acumulados Mes Anterior"]
[null,"CAM","Cantidad Acumulado del Mes"]
[null,"COM","Compensatorios Concedidos"]
[null,"CEX","Causados EXM horas / 6"]
[null,"ATA","Acumulados Total Actuales"]
[null,"ATM","Acumulados Total Mes"]
[null,"CEM","Causados en el Mes"]
[null,"AMF","Acumulados Mensual a Favor"]
[]
[null,"FUNCIONARIO ELABORA PROGRAMACIÓN","Firma"]
[]
[]
[null,"EXTRAS"]
[]
[null,"MES LABORADO","Se registra el mes laborado"]
[null,"FECHA DE ELABORACIÓN","Se indica la fecha de elaboración "]
[null,"FUNCIONARIO","Nombre completo del funcionario"]
[null,"CARGO, CÓDIGO Y GRADO","Nombre del cargo, código-rango "]
[null,"SUELDO Y PRIMA ANTIGÜEDAD","Sueldo en moneda nacional (pesos colombianos), escrito en números "]
[null,"CÉDULA N°","Número de identificación del funcionario"]
[null,"ÁREA OPERATIVA N°","Código del área operativa"]
[null,"UBICACIÓN","Nombre del aeropuerto y/o estación y ciudad de localización "]
[]
[null,"DÍA","Esta preestablecido de 01- 30"]
[null,"ORDINARIOS","Se indica las horas extras diurnas (125%) y/u Horas extras nocturnas (175%)"]
[null,"DOMINICALES","Se indica las horas de jornada ordinaria (200%) y/u Horas extras diurnas (225%) y/u Horas extras nocturnas (275%)"]
[null,"RECAUDO NOCTURNO","Se establece el recargo nocturno  ( 35% )"]
[null,"JORNADA","Se puntualiza las horas asignadas y/u horas extras  y compensatorios"]
[]
[null,"COMPENSATORIOS","Se específica los compensatorios  con relación a: ACU, CAU, EXM, CEX, CON, ATA"]
[]
[null,"OBSERVACIONES","Se escriben observaciones si es necesario "]
[]
[null,"FIRMA DEL FUNCIONARIO","Firma personal del  funcionario "]
[null,"FIRMA DEL COORDINADOR Y/O JEFE INMEDIATO","Firman personal del coordinador "]
[]
[null,"FUNCIONARIOS"]
[]
[null,"FUNCIONARIOS AEROPUERTO","Se identifica el nombre del aeropuerto- ciudad -área operativa"]
[null,"FUNCIONARIO","Nombre completo del funcionario"]
[null,"IDENTIFICACIÓN","Número de la cédula del funcionario"]
[null,"CARGO","Nombre del cargo- código-rango"]
[null,"SUELDO","Sueldo en moneda nacional (pesos colombianos), escrito en números "]
[null,"FIRMA","Firma personal del  funcionario "]

{"sheet":"CONTROL DE CAMBIOS","index":4,"n_rows":9,"n_cols":10,"rows_kept":9,"cut":false,"hidden":false,"merged":[]}
[]
[null,null,null,null,null,null,null,null,null,"Código:  SMA-F005"]
[null,null,null,null,null,null,null,null,null,"Versión: 04"]
[null,null,null,null,"Servicios - Meteorología Aeronáutica\nFormato Programación de comisiones y turnos ",null,null,null,null,"Fecha: 29/11/2024"]
[]
[null,"CONTROL DE CAMBIOS"]
[null,"Versión","Fecha","Cambios Realizados "]
[null,3,"2018-10-04","Última versión del formato "]
[null,4,"2024-11-29","Actualización del documento  a la plantilla nueva e inclusión de las instrucciones de diligenciamiento  y control de cambios "]